[Event "Kvibergspelen 2022"]
[Site "Kviberg Park Hotel & Conference, Krutvagen 2, Gothenburg, Sweden"]
[Date "2022.10.01"]
[Round "5.10"]
[White "Rasti, Arvin"]
[Black "Muntean, Victor"]
[Result "1/2-1/2"]
[TimeControl "15 minutes + 5 seconds per move from move one (Round 1 - 4) / 90 minutes + 30 seconds per move from move one (Round 5 - 8)"]
[WhiteFideId "1741160"]
[BlackFideId "1054414"]
[WhiteElo "2186"]
[BlackElo "1968"]

1. d4 {[%clk 01:30:56]} {[%emt 00:00:03]} Nf6 {[%clk 01:30:55]} {[%emt
00:00:06]} 2. Bg5 {[%clk 01:31:18]} {[%emt 00:00:08]} e6 {[%clk 01:29:54]}
{[%emt 00:01:32]} 3. Nd2 {[%clk 01:31:41]} {[%emt 00:00:06]} d5 {[%clk
01:28:30]} {[%emt 00:01:54]} 4. Ngf3 {[%clk 01:29:59]} {[%emt 00:02:12]} c5
{[%clk 01:24:22]} {[%emt 00:04:39]} 5. e3 {[%clk 01:27:58]} {[%emt 00:02:30]}
Nc6 {[%clk 01:23:24]} {[%emt 00:01:28]} 6. c3 {[%clk 01:28:01]} {[%emt
00:00:26]} cxd4 {[%clk 01:21:29]} {[%emt 00:02:26]} 7. exd4 {[%clk 01:28:08]}
{[%emt 00:00:22]} Bd6 {[%clk 01:20:04]} {[%emt 00:01:56]} 8. Bd3 {[%clk
01:28:18]} {[%emt 00:00:20]} O-O {[%clk 01:17:53]} {[%emt 00:02:41]} 9. O-O
{[%clk 01:28:17]} {[%emt 00:00:30]} h6 {[%clk 01:15:03]} {[%emt 00:03:21]} 10.
Bh4 {[%clk 01:28:35]} {[%emt 00:00:12]} e5 {[%clk 01:12:16]} {[%emt 00:03:17]}
11. dxe5 {[%clk 01:28:07]} {[%emt 00:00:58]} Bxe5 {[%clk 01:12:02]} {[%emt
00:00:44]} 12. Nxe5 {[%clk 01:27:13]} {[%emt 00:01:24]} Nxe5 {[%clk 01:09:56]}
{[%emt 00:02:36]} 13. Be2 {[%clk 01:27:16]} {[%emt 00:00:27]} Ng6 {[%clk
01:04:35]} {[%emt 00:05:51]} 14. Bg3 {[%clk 01:27:05]} {[%emt 00:00:40]} d4
{[%clk 01:02:38]} {[%emt 00:02:28]} 15. cxd4 {[%clk 01:25:09]} {[%emt
00:02:26]} Qxd4 {[%clk 01:02:51]} {[%emt 00:00:17]} 16. Nc4 {[%clk 01:25:22]}
{[%emt 00:00:17]} Rd8 {[%clk 01:00:33]} {[%emt 00:02:48]} 17. Bf3 {[%clk
01:19:30]} {[%emt 00:06:22]} Be6 {[%clk 00:49:45]} {[%emt 00:11:18]} 18. Qxd4
{[%clk 01:18:58]} {[%emt 00:01:01]} Rxd4 {[%clk 00:50:11]} {[%emt 00:00:04]} 19.
Bxb7 {[%clk 01:18:16]} {[%emt 00:01:12]} Rad8 {[%clk 00:49:31]} {[%emt
00:01:10]} 20. Ne5 {[%clk 01:17:19]} {[%emt 00:01:27]} Rd2 {[%clk 00:45:46]}
{[%emt 00:04:16]} 21. Nxg6 {[%clk 01:16:51]} {[%emt 00:00:56]} fxg6 {[%clk
00:46:10]} {[%emt 00:00:06]} 22. Be5 {[%clk 01:11:50]} {[%emt 00:05:31]} Re2
{[%clk 00:44:31]} {[%emt 00:02:10]} 23. Bc3 {[%clk 01:06:57]} {[%emt 00:05:23]}
Nd5 {[%clk 00:43:00]} {[%emt 00:02:00]} 24. Rad1 {[%clk 01:06:15]} {[%emt
00:01:12]} Rd7 {[%clk 00:42:17]} {[%emt 00:01:14]} 25. Bxd5 {[%clk 00:59:23]}
{[%emt 00:07:23]} Rxd5 {[%clk 00:41:55]} {[%emt 00:00:52]} 26. Rde1 {[%clk
00:59:32]} {[%emt 00:00:19]} Rxe1 {[%clk 00:41:34]} {[%emt 00:00:52]} 27. Rxe1
{[%clk 01:00:01]} {[%emt 00:00:02]} Rd6 {[%clk 00:40:52]} {[%emt 00:01:11]} 28.
h3 {[%clk 00:59:19]} {[%emt 00:01:12]} Kf7 {[%clk 00:40:47]} {[%emt 00:00:36]}
29. a3 {[%clk 00:59:25]} {[%emt 00:00:24]} g5 {[%clk 00:38:11]} {[%emt
00:03:06]} 30. Re5 {[%clk 00:58:37]} {[%emt 00:01:18]} a6 {[%clk 00:36:55]}
{[%emt 00:01:46]} 31. Rc5 {[%clk 00:58:45]} {[%emt 00:00:21]} Bd7 {[%clk
00:31:42]} {[%emt 00:05:44]} 32. Rc7 {[%clk 00:58:46]} {[%emt 00:00:29]} g6
{[%clk 00:29:53]} {[%emt 00:02:19]} 33. Bb4 {[%clk 00:59:08]} {[%emt 00:00:08]}
Rd1+ {[%clk 00:29:27]} {[%emt 00:00:55]} 34. Kh2 {[%clk 00:59:35]} {[%emt
00:00:02]} Kf6 {[%clk 00:27:38]} {[%emt 00:02:20]} 35. Ra7 {[%clk 00:59:30]}
{[%emt 00:00:35]} Bb5 {[%clk 00:28:02]} {[%emt 00:00:07]} 36. a4 {[%clk
00:58:09]} {[%emt 00:01:51]} Bd3 {[%clk 00:27:49]} {[%emt 00:00:42]} 37. Rc7
{[%clk 00:55:34]} {[%emt 00:03:04]} Ke6 {[%clk 00:26:28]} {[%emt 00:01:51]} 38.
Rc6+ {[%clk 00:55:06]} {[%emt 00:00:59]} Kf5 {[%clk 00:23:43]} {[%emt
00:03:15]} 39. Bf8 {[%clk 00:53:22]} {[%emt 00:02:12]} h5 {[%clk 00:21:39]}
{[%emt 00:02:36]} 40. Bg7 {[%clk 00:53:45]} {[%emt 00:00:06]} Kf4 {[%clk
00:19:16]} {[%emt 00:02:53]} 41. Rf6+ {[%clk 00:53:34]} {[%emt 00:00:40]} Bf5
{[%clk 00:19:32]} {[%emt 00:00:15]} 42. Rxa6 {[%clk 00:53:04]} {[%emt
00:01:00]} Rd2 {[%clk 00:19:45]} {[%emt 00:00:17]} 43. f3 {[%clk 00:52:44]}
{[%emt 00:00:51]} g4 {[%clk 00:18:11]} {[%emt 00:02:04]} 44. hxg4 {[%clk
00:51:37]} {[%emt 00:01:36]} hxg4 {[%clk 00:18:24]} {[%emt 00:00:17]} 45. fxg4
{[%clk 00:51:26]} {[%emt 00:00:42]} Be4 {[%clk 00:17:51]} {[%emt 00:01:03]} 46.
Kh3 {[%clk 00:45:46]} {[%emt 00:06:09]} Rxg2 {[%clk 00:14:35]} {[%emt
00:03:46]} 47. Bh6+ {[%clk 00:45:47]} {[%emt 00:00:30]} g5 {[%clk 00:14:58]}
{[%emt 00:00:07]} 48. Rf6+ {[%clk 00:45:43]} {[%emt 00:00:33]} Ke5 {[%clk
00:15:25]} {[%emt 00:00:04]} 49. Rf8 {[%clk 00:43:33]} {[%emt 00:02:40]} Rg1
{[%clk 00:14:45]} {[%emt 00:01:10]} 50. Re8+ {[%clk 00:42:31]} {[%emt
00:01:32]} Kd4 {[%clk 00:13:13]} {[%emt 00:02:02]} 51. Bxg5 {[%clk 00:40:22]}
{[%emt 00:02:38]} Rh1+ {[%clk 00:13:35]} {[%emt 00:00:08]} 52. Kg3 {[%clk
00:40:47]} {[%emt 00:00:05]} Rg1+ {[%clk 00:14:00]} {[%emt 00:00:05]} 53. Kf2
{[%clk 00:41:01]} {[%emt 00:00:16]} Rg2+ {[%clk 00:14:25]} {[%emt 00:00:06]} 54.
Kf1 {[%clk 00:40:41]} {[%emt 00:00:50]} Rxg4 {[%clk 00:14:47]} {[%emt
00:00:08]} 55. Bd8 {[%clk 00:40:43]} {[%emt 00:00:27]} Bc6 {[%clk 00:11:34]}
{[%emt 00:03:44]} 56. Bb6+ {[%clk 00:40:57]} {[%emt 00:00:16]} Kd3 {[%clk
00:11:52]} {[%emt 00:00:11]} 57. Re3+ {[%clk 00:39:22]} {[%emt 00:02:05]} Kd2
{[%clk 00:09:59]} {[%emt 00:02:22]} 58. a5 {[%clk 00:38:52]} {[%emt 00:01:00]}
Rb4 {[%clk 00:09:41]} {[%emt 00:00:48]} 59. Re2+ {[%clk 00:38:16]} {[%emt
00:01:07]} Kd1 {[%clk 00:08:53]} {[%emt 00:01:18]} 60. Re1+ {[%clk 00:37:16]}
{[%emt 00:01:29]} Kc2 {[%clk 00:08:25]} {[%emt 00:00:58]} 61. Re2+ {[%clk
00:35:29]} {[%emt 00:02:18]} Kb1 {[%clk 00:08:31]} {[%emt 00:00:24]} 62. Re6
{[%clk 00:30:44]} {[%emt 00:05:14]} Bd5 {[%clk 00:06:11]} {[%emt 00:02:51]} 63.
Rd6 {[%clk 00:30:18]} {[%emt 00:00:56]} Bc4 {[%clk 00:06:34]} {[%emt 00:00:07]}
64. Kf2 {[%clk 00:30:26]} {[%emt 00:00:21]} Rxb2+ {[%clk 00:05:34]} {[%emt
00:01:32]} 65. Ke3 {[%clk 00:30:32]} {[%emt 00:00:23]} Re2+ {[%clk 00:05:39]}
{[%emt 00:00:25]} 66. Kf4 {[%clk 00:31:01]} {[%emt 00:00:03]} Kc2 {[%clk
00:05:17]} {[%emt 00:00:51]} 67. Be3 {[%clk 00:30:42]} {[%emt 00:00:48]} Kb3
{[%clk 00:03:24]} {[%emt 00:02:23]} 68. a6 {[%clk 00:30:53]} {[%emt 00:00:19]}
Ra2 {[%clk 00:03:34]} {[%emt 00:00:19]} 69. a7 {[%clk 00:31:21]} {[%emt
00:00:03]} Bf1 {[%clk 00:03:43]} {[%emt 00:00:21]} 70. Ke5 {[%clk 00:30:41]}
{[%emt 00:01:08]} Bg2 {[%clk 00:03:31]} {[%emt 00:00:43]} 71. Kd4 {[%clk
00:30:38]} {[%emt 00:00:32]} Rxa7 {[%clk 00:03:21]} {[%emt 00:00:41]} 72. Kd3
{[%clk 00:30:44]} {[%emt 00:00:24]} Bf1 {[%clk 00:03:44]} {[%emt 00:00:07]} 73.
Kd2 {[%clk 00:31:06]} {[%emt 00:00:08]} Ra2+ {[%clk 00:04:03]} {[%emt
00:00:10]} 74. Kd1 {[%clk 00:31:18]} {[%emt 00:00:18]} Be2+ {[%clk 00:03:53]}
{[%emt 00:00:41]} 75. Ke1 {[%clk 00:31:39]} {[%emt 00:00:09]} Bc4 {[%clk
00:03:56]} {[%emt 00:00:27]} 76. Rb6+ {[%clk 00:31:51]} {[%emt 00:00:18]} Kc3
{[%clk 00:04:09]} {[%emt 00:00:16]} 77. Bh6 {[%clk 00:31:20]} {[%emt 00:01:01]}
Re2+ {[%clk 00:04:13]} {[%emt 00:00:26]} 78. Kd1 {[%clk 00:31:42]} {[%emt
00:00:08]} Rg2 {[%clk 00:04:18]} {[%emt 00:00:25]} 79. Ke1 {[%clk 00:31:28]}
{[%emt 00:00:44]} Re2+ {[%clk 00:04:42]} {[%emt 00:00:06]} 1/2-1/2

[Event "Kvibergspelen 2022"]
[Site "Kviberg Park Hotel & Conference, Krutvagen 2, Gothenburg, Sweden"]
[Date "2022.10.01"]
[Round "5.11"]
[White "Nygren, David"]
[Black "Fridgeirsson, Dagur Andri"]
[Result "0-1"]
[TimeControl "15 minutes + 5 seconds per move from move one (Round 1 - 4) / 90 minutes + 30 seconds per move from move one (Round 5 - 8)"]
[WhiteFideId "1704761"]
[BlackFideId "2303124"]
[WhiteElo "2165"]
[BlackElo "1943"]

1. e4 {[%clk 01:30:55]} {[%emt 00:00:04]} c5 {[%clk 01:28:36]} {[%emt
00:02:25]} 2. c3 {[%clk 01:31:11]} {[%emt 00:00:13]} Nc6 {[%clk 01:28:36]}
{[%emt 00:00:31]} 3. d4 {[%clk 01:31:24]} {[%emt 00:00:17]} cxd4 {[%clk
01:28:40]} {[%emt 00:00:26]} 4. cxd4 {[%clk 01:31:43]} {[%emt 00:00:11]} d6
{[%clk 01:28:13]} {[%emt 00:00:57]} 5. Nf3 {[%clk 01:31:05]} {[%emt 00:01:07]}
g6 {[%clk 01:27:56]} {[%emt 00:00:47]} 6. Nc3 {[%clk 01:30:35]} {[%emt
00:01:01]} Bg7 {[%clk 01:27:56]} {[%emt 00:00:30]} 7. d5 {[%clk 01:28:43]}
{[%emt 00:02:22]} Ne5 {[%clk 01:27:46]} {[%emt 00:00:39]} 8. Nd4 {[%clk
01:27:06]} {[%emt 00:02:07]} Qb6 {[%clk 01:25:29]} {[%emt 00:02:47]} 9. Bb5+
{[%clk 01:24:42]} {[%emt 00:02:55]} Bd7 {[%clk 01:25:31]} {[%emt 00:00:28]} 10.
Be3 {[%clk 01:23:33]} {[%emt 00:01:39]} Bh6 {[%clk 01:16:10]} {[%emt 00:09:50]}
11. Bxh6 {[%clk 01:09:03]} {[%emt 00:15:00]} Nxh6 {[%clk 01:14:09]} {[%emt
00:02:31]} 12. Bxd7+ {[%clk 01:07:47]} {[%emt 00:01:47]} Nxd7 {[%clk 01:14:20]}
{[%emt 00:00:18]} 13. Qd2 {[%clk 01:04:10]} {[%emt 00:04:07]} Ng4 {[%clk
01:14:18]} {[%emt 00:00:32]} 14. O-O {[%clk 00:59:40]} {[%emt 00:05:01]} Nge5
{[%clk 01:12:52]} {[%emt 00:01:55]} 15. b3 {[%clk 00:55:02]} {[%emt 00:05:09]}
Rc8 {[%clk 01:05:10]} {[%emt 00:08:12]} 16. Na4 {[%clk 00:52:46]} {[%emt
00:02:46]} Qa6 {[%clk 01:02:51]} {[%emt 00:02:48]} 17. Rad1 {[%clk 00:42:31]}
{[%emt 00:10:46]} O-O {[%clk 00:55:35]} {[%emt 00:07:46]} 18. h3 {[%clk
00:37:14]} {[%emt 00:05:46]} Nf6 {[%clk 00:51:49]} {[%emt 00:04:16]} 19. Rfe1
{[%clk 00:34:55]} {[%emt 00:02:48]} Rc7 {[%clk 00:49:17]} {[%emt 00:03:02]} 20.
Nc3 {[%clk 00:31:16]} {[%emt 00:04:10]} Rfc8 {[%clk 00:48:36]} {[%emt
00:01:11]} 21. Ncb5 {[%clk 00:30:22]} {[%emt 00:01:24]} Rc5 {[%clk 00:48:20]}
{[%emt 00:00:45]} 22. a4 {[%clk 00:25:49]} {[%emt 00:05:04]} Qb6 {[%clk
00:47:22]} {[%emt 00:01:28]} 23. f4 {[%clk 00:22:38]} {[%emt 00:03:41]} Ned7
{[%clk 00:38:27]} {[%emt 00:09:25]} 24. Kh2 {[%clk 00:21:50]} {[%emt 00:01:18]}
a6 {[%clk 00:38:27]} {[%emt 00:00:31]} 25. Na3 {[%clk 00:20:32]} {[%emt
00:01:47]} Qd8 {[%clk 00:31:49]} {[%emt 00:07:07]} 26. Nc4 {[%clk 00:14:12]}
{[%emt 00:06:51]} Qf8 {[%clk 00:30:32]} {[%emt 00:01:46]} 27. f5 {[%clk
00:13:47]} {[%emt 00:00:55]} Ne5 {[%clk 00:29:40]} {[%emt 00:01:22]} 28. Nxe5
{[%clk 00:12:51]} {[%emt 00:01:27]} dxe5 {[%clk 00:27:13]} {[%emt 00:02:57]} 29.
Nf3 {[%clk 00:12:56]} {[%emt 00:00:25]} Rc2 {[%clk 00:26:15]} {[%emt 00:01:28]}
30. Qg5 {[%clk 00:11:20]} {[%emt 00:02:05]} R8c3 {[%clk 00:25:14]} {[%emt
00:01:32]} 31. Nxe5 {[%clk 00:09:10]} {[%emt 00:02:41]} h6 {[%clk 00:22:46]}
{[%emt 00:02:57]} 32. Qf4 {[%clk 00:08:16]} {[%emt 00:01:26]} g5 {[%clk
00:22:16]} {[%emt 00:00:58]} 33. Qf1 {[%clk 00:08:38]} {[%emt 00:00:08]} Qb8
{[%clk 00:21:59]} {[%emt 00:00:48]} 34. d6 {[%clk 00:08:49]} {[%emt 00:00:18]}
exd6 {[%clk 00:22:09]} {[%emt 00:00:21]} 35. Nf3 {[%clk 00:08:31]} {[%emt
00:00:48]} g4 {[%clk 00:16:51]} {[%emt 00:05:48]} 36. Nd4 {[%clk 00:07:42]}
{[%emt 00:01:19]} g3+ {[%clk 00:16:46]} {[%emt 00:00:34]} 37. Kh1 {[%clk
00:07:05]} {[%emt 00:01:07]} Rf2 {[%clk 00:17:03]} {[%emt 00:00:12]} 38. Qg1
{[%clk 00:07:19]} {[%emt 00:00:17]} Ng4 {[%clk 00:15:52]} {[%emt 00:01:43]} 39.
f6 {[%clk 00:03:56]} {[%emt 00:03:52]} Ne3 {[%clk 00:13:59]} {[%emt 00:02:23]}
40. Rxe3 {[%clk 00:01:28]} {[%emt 00:02:58]} Rxe3 {[%clk 00:14:25]} {[%emt
00:00:03]} 41. Rf1 {[%clk 00:00:53]} {[%emt 00:01:06]} Qa7 {[%clk 00:12:09]}
{[%emt 00:02:46]} 42. Rxf2 {[%clk 00:00:57]} {[%emt 00:00:26]} gxf2 {[%clk
00:12:09]} {[%emt 00:00:29]} 0-1

[Event "Kvibergspelen 2022"]
[Site "Kviberg Park Hotel & Conference, Krutvagen 2, Gothenburg, Sweden"]
[Date "2022.10.01"]
[Round "5.12"]
[White "Johannsson, Birkir Isak"]
[Black "Berntsson, Jonas"]
[Result "1/2-1/2"]
[TimeControl "15 minutes + 5 seconds per move from move one (Round 1 - 4) / 90 minutes + 30 seconds per move from move one (Round 5 - 8)"]
[WhiteFideId "2314673"]
[BlackFideId "1729470"]
[WhiteElo "2165"]
[BlackElo "1915"]

1. Nf3 {[%clk 01:30:56]} {[%emt 00:00:03]} Nf6 {[%clk 01:29:18]} {[%emt
00:01:42]} 2. g3 {[%clk 01:31:14]} {[%emt 00:00:12]} g6 {[%clk 01:29:07]}
{[%emt 00:00:41]} 3. b3 {[%clk 01:31:34]} {[%emt 00:00:11]} Bg7 {[%clk
01:26:23]} {[%emt 00:03:14]} 4. Bb2 {[%clk 01:31:20]} {[%emt 00:00:44]} d6
{[%clk 01:26:14]} {[%emt 00:00:40]} 5. d4 {[%clk 01:31:17]} {[%emt 00:00:32]}
O-O {[%clk 01:23:33]} {[%emt 00:03:10]} 6. Bg2 {[%clk 01:30:45]} {[%emt
00:01:02]} c6 {[%clk 01:16:10]} {[%emt 00:07:54]} 7. O-O {[%clk 01:30:26]}
{[%emt 00:00:49]} d5 {[%clk 01:14:19]} {[%emt 00:02:21]} 8. c4 {[%clk
01:28:55]} {[%emt 00:02:01]} Bf5 {[%clk 01:12:29]} {[%emt 00:02:20]} 9. Nc3
{[%clk 01:27:29]} {[%emt 00:01:56]} Ne4 {[%clk 00:59:35]} {[%emt 00:13:24]} 10.
e3 {[%clk 01:24:38]} {[%emt 00:03:21]} Na6 {[%clk 00:53:27]} {[%emt 00:06:39]}
11. Nh4 {[%clk 01:08:14]} {[%emt 00:16:53]} Nxc3 {[%clk 00:51:48]} {[%emt
00:02:09]} 12. Bxc3 {[%clk 01:05:43]} {[%emt 00:03:00]} Be6 {[%clk 00:52:00]}
{[%emt 00:00:19]} 13. Qe2 {[%clk 00:57:54]} {[%emt 00:08:19]} Rc8 {[%clk
00:37:43]} {[%emt 00:14:47]} 14. Rac1 {[%clk 00:49:41]} {[%emt 00:08:43]} Qd7
{[%clk 00:34:12]} {[%emt 00:04:01]} 15. Rfd1 {[%clk 00:44:11]} {[%emt
00:05:59]} Rfd8 {[%clk 00:32:33]} {[%emt 00:02:09]} 16. e4 {[%clk 00:43:03]}
{[%emt 00:01:38]} Bg4 {[%clk 00:29:53]} {[%emt 00:03:11]} 17. Nf3 {[%clk
00:37:16]} {[%emt 00:06:17]} Bh6 {[%clk 00:26:23]} {[%emt 00:04:01]} 18. Ra1
{[%clk 00:35:13]} {[%emt 00:02:33]} Bg7 {[%clk 00:25:00]} {[%emt 00:01:53]} 19.
Qe3 {[%clk 00:30:21]} {[%emt 00:05:22]} dxe4 {[%clk 00:21:42]} {[%emt
00:03:49]} 20. Qxe4 {[%clk 00:30:15]} {[%emt 00:00:36]} Qf5 {[%clk 00:22:02]}
{[%emt 00:00:09]} 21. Qxf5 {[%clk 00:28:24]} {[%emt 00:02:21]} Bxf5 {[%clk
00:22:09]} {[%emt 00:00:23]} 22. Ne5 {[%clk 00:26:51]} {[%emt 00:02:02]} f6
{[%clk 00:15:13]} {[%emt 00:07:26]} 23. Nf3 {[%clk 00:26:22]} {[%emt 00:00:59]}
Rc7 {[%clk 00:15:28]} {[%emt 00:00:16]} 24. h3 {[%clk 00:22:14]} {[%emt
00:04:37]} Rcd7 {[%clk 00:13:11]} {[%emt 00:02:48]} 25. g4 {[%clk 00:21:27]}
{[%emt 00:01:16]} Be4 {[%clk 00:11:38]} {[%emt 00:02:03]} 26. Re1 {[%clk
00:20:46]} {[%emt 00:01:11]} f5 {[%clk 00:12:03]} {[%emt 00:00:05]} 27. Ng5
{[%clk 00:15:07]} {[%emt 00:06:09]} Nc5 {[%clk 00:11:21]} {[%emt 00:01:13]} 28.
Bxe4 {[%clk 00:12:35]} {[%emt 00:03:01]} fxe4 {[%clk 00:08:26]} {[%emt
00:03:26]} 29. Nxe4 {[%clk 00:12:46]} {[%emt 00:00:19]} Nxe4 {[%clk 00:08:28]}
{[%emt 00:00:27]} 30. Rxe4 {[%clk 00:13:02]} {[%emt 00:00:14]} c5 {[%clk
00:08:40]} {[%emt 00:00:18]} 31. Rd1 {[%clk 00:11:25]} {[%emt 00:02:07]} cxd4
{[%clk 00:08:19]} {[%emt 00:00:51]} 32. Bb4 {[%clk 00:11:30]} {[%emt 00:00:24]}
e5 {[%clk 00:08:08]} {[%emt 00:00:41]} 33. Rd3 {[%clk 00:10:20]} {[%emt
00:01:41]} Rf7 {[%clk 00:07:37]} {[%emt 00:01:01]} 34. Kg2 {[%clk 00:10:14]}
{[%emt 00:00:36]} Rc8 {[%clk 00:07:46]} {[%emt 00:00:21]} 35. Bd6 {[%clk
00:08:56]} {[%emt 00:01:48]} Rcf8 {[%clk 00:05:58]} {[%emt 00:02:18]} 36. Bxf8
{[%clk 00:08:16]} {[%emt 00:01:10]} Rxf8 {[%clk 00:06:23]} {[%emt 00:00:05]} 37.
h4 {[%clk 00:05:19]} {[%emt 00:03:26]} h6 {[%clk 00:06:29]} {[%emt 00:00:24]}
38. Kg3 {[%clk 00:04:38]} {[%emt 00:01:11]} Bf6 {[%clk 00:05:54]} {[%emt
00:01:05]} 39. f3 {[%clk 00:03:29]} {[%emt 00:01:39]} Kg7 {[%clk 00:06:17]}
{[%emt 00:00:07]} 40. h5 {[%clk 00:03:37]} {[%emt 00:00:21]} Bg5 {[%clk
00:06:21]} {[%emt 00:00:27]} 41. hxg6 {[%clk 00:02:41]} {[%emt 00:01:26]} Bf4+
{[%clk 00:06:42]} {[%emt 00:00:09]} 42. Kg2 {[%clk 00:02:57]} {[%emt 00:00:13]}
Kxg6 {[%clk 00:07:03]} {[%emt 00:00:09]} 43. Re1 {[%clk 00:03:16]} {[%emt
00:00:11]} h5 {[%clk 00:07:15]} {[%emt 00:00:19]} 44. gxh5+ {[%clk 00:03:29]}
{[%emt 00:00:17]} Kxh5 {[%clk 00:07:33]} {[%emt 00:00:12]} 45. Rh1+ {[%clk
00:03:57]} {[%emt 00:00:01]} Kg6 {[%clk 00:07:45]} {[%emt 00:00:18]} 46. Rdd1
{[%clk 00:03:07]} {[%emt 00:01:21]} Rg8 {[%clk 00:06:20]} {[%emt 00:01:56]} 47.
Kf2 {[%clk 00:01:49]} {[%emt 00:01:46]} Be3+ {[%clk 00:06:25]} {[%emt
00:00:26]} 48. Ke2 {[%clk 00:01:58]} {[%emt 00:00:20]} Kf6 {[%clk 00:06:44]}
{[%emt 00:00:12]} 49. Kd3 {[%clk 00:01:11]} {[%emt 00:01:17]} Rg2 {[%clk
00:06:54]} {[%emt 00:00:19]} 50. Ke4 {[%clk 00:00:59]} {[%emt 00:00:43]} Ke6
{[%clk 00:07:07]} {[%emt 00:00:17]} 51. Rhe1 {[%clk 00:00:34]} {[%emt
00:00:55]} Rxa2 {[%clk 00:07:17]} {[%emt 00:00:20]} 52. Rxe3 {[%clk 00:00:44]}
{[%emt 00:00:20]} dxe3 {[%clk 00:07:32]} {[%emt 00:00:16]} 53. Kxe3 {[%clk
00:01:12]} {[%emt 00:00:01]} Rb2 {[%clk 00:07:16]} {[%emt 00:00:46]} 54. Ke4
{[%emt 00:00:50]} 1/2-1/2